Workbook

Sheet Sheet1
A1: Parameter | B1: Value | C1: Comment/Formula
A2: Prior | G2: lambda | H2: pdf_prior | I2: pdf_posterior
A3: lambda_low | B3: 100 | G3: 0 | H3: =_xlfn.GAMMA.DIST(G3,U_2_prior,1/U_1_prior,FALSE) -> 0 | I3: =_xlfn.GAMMA.DIST(G3,U_2_posterior,1/U_1_posterior,FALSE) -> 0
A4: lambda_high | B4: 1000 | G4: =G3+lambda_high*0.07 -> 70 | H4: =_xlfn.GAMMA.DIST(G4,U_2_prior,1/U_1_prior,FALSE) -> 0.0007282943186 | I4: =_xlfn.GAMMA.DIST(G4,U_2_posterior,1/U_1_posterior,FALSE) -> 8.188494192e-06
A5: conf_level | B5: 0.9 | C5: Conf. level for given interval | G5: =G4+lambda_high*0.07 -> 140 | H5: =_xlfn.GAMMA.DIST(G5,U_2_prior,1/U_1_prior,FALSE) -> 0.00134790079 | I5: =_xlfn.GAMMA.DIST(G5,U_2_posterior,1/U_1_posterior,FALSE) -> 0.00015205625
A6: lambda_mean | B6: =SQRT(lambda_low*lambda_high) -> 316.227766 | C6: First approx | G6: =G5+lambda_high*0.07 -> 210 | H6: =_xlfn.GAMMA.DIST(G6,U_2_prior,1/U_1_prior,FALSE) -> 0.001649818689 | I6: =_xlfn.GAMMA.DIST(G6,U_2_posterior,1/U_1_posterior,FALSE) -> 0.0005908494624
A7: lambda_SD | B7: =(lambda_high-lambda_low)/4 -> 225 | C7: First approx | G7: =G6+lambda_high*0.07 -> 280 | H7: =_xlfn.GAMMA.DIST(G7,U_2_prior,1/U_1_prior,FALSE) -> 0.001704879538 | I7: =_xlfn.GAMMA.DIST(G7,U_2_posterior,1/U_1_posterior,FALSE) -> 0.001210092341
A8: U_1 | B8: =lambda_mean/lambda_SD^2 -> 0.00624647439 | C8: First approx | G8: =G7+lambda_high*0.07 -> 350 | H8: =_xlfn.GAMMA.DIST(G8,U_2_prior,1/U_1_prior,FALSE) -> 0.00160570545 | I8: =_xlfn.GAMMA.DIST(G8,U_2_posterior,1/U_1_posterior,FALSE) -> 0.001744857599
A9: U_2 | B9: =U_1*lambda_mean -> 1.975308642 | C9: First approx | G9: =G8+lambda_high*0.07 -> 420 | H9: =_xlfn.GAMMA.DIST(G9,U_2_prior,1/U_1_prior,FALSE) -> 0.001426122243 | I9: =_xlfn.GAMMA.DIST(G9,U_2_posterior,1/U_1_posterior,FALSE) -> 0.002015139367
A10: U_1_adjusted | B10: 0.00543789139 | C10: Obtain by solver | G10: =G9+lambda_high*0.07 -> 490 | H10: =_xlfn.GAMMA.DIST(G10,U_2_prior,1/U_1_prior,FALSE) -> 0.001216363028 | I10: =_xlfn.GAMMA.DIST(G10,U_2_posterior,1/U_1_posterior,FALSE) -> 0.00199676955
A11: U_2_adjusted | B11: 2.437286144 | C11: Obtain by solver | G11: =G10+lambda_high*0.07 -> 560 | H11: =_xlfn.GAMMA.DIST(G11,U_2_prior,1/U_1_prior,FALSE) -> 0.001007161225 | I11: =_xlfn.GAMMA.DIST(G11,U_2_posterior,1/U_1_posterior,FALSE) -> 0.001768726819
A12: CDF_low | B12: =_xlfn.GAMMA.DIST(lambda_low,U_2_prior,1/U_1_prior,TRUE) -> 0.04999923892 | C12: =_xlfn.FORMULATEXT(B12) -> =GAMMA.DIST(lambda_low,U_2_prior,1/U_1_prior,TRUE) | G12: =G11+lambda_high*0.07 -> 630 | H12: =_xlfn.GAMMA.DIST(G12,U_2_prior,1/U_1_prior,FALSE) -> 0.0008152758415 | I12: =_xlfn.GAMMA.DIST(G12,U_2_posterior,1/U_1_posterior,FALSE) -> 0.001438154911
A13: CDF_high | B13: =_xlfn.GAMMA.DIST(lambda_high,U_2_prior,1/U_1_prior,TRUE) -> 0.949999944 | C13: =_xlfn.FORMULATEXT(B13) -> =GAMMA.DIST(lambda_high,U_2_prior,1/U_1_prior,TRUE) | G13: =G12+lambda_high*0.07 -> 700 | H13: =_xlfn.GAMMA.DIST(G13,U_2_prior,1/U_1_prior,FALSE) -> 0.0006482700308 | I13: =_xlfn.GAMMA.DIST(G13,U_2_posterior,1/U_1_posterior,FALSE) -> 0.00109299014
A14: low_0 | B14: =CDF_low-(1-conf_level)/2 -> -7.610815687e-07 | C14: =CDF_low-(1-conf_level)/2 | G14: =G13+lambda_high*0.07 -> 770 | H14: =_xlfn.GAMMA.DIST(G14,U_2_prior,1/U_1_prior,FALSE) -> 0.0005080820383 | I14: =_xlfn.GAMMA.DIST(G14,U_2_posterior,1/U_1_posterior,FALSE) -> 0.0007864916637
A15: high_1 | B15: =CDF_high+(1-conf_level)/2 -> 0.999999944 | C15: =CDF_high+(1-conf_level)/2 | G15: =G14+lambda_high*0.07 -> 840 | H15: =_xlfn.GAMMA.DIST(G15,U_2_prior,1/U_1_prior,FALSE) -> 0.0003934880805 | I15: =_xlfn.GAMMA.DIST(G15,U_2_posterior,1/U_1_posterior,FALSE) -> 0.000540972699
A16: prior_mean | B16: =U_2_prior/U_1_prior -> 448.2042706 | C16: =U_2_prior/U_1_prior | G16: =G15+lambda_high*0.07 -> 910 | H16: =_xlfn.GAMMA.DIST(G16,U_2_prior,1/U_1_prior,FALSE) -> 0.0003017028685 | I16: =_xlfn.GAMMA.DIST(G16,U_2_posterior,1/U_1_posterior,FALSE) -> 0.0003582621049
A17: prior_SD | B17: =SQRT(U_2_prior)/U_1_prior -> 287.093084 | C17: =SQRT(U_2_prior)/U_1_prior | G17: =G16+lambda_high*0.07 -> 980 | H17: =_xlfn.GAMMA.DIST(G17,U_2_prior,1/U_1_prior,FALSE) -> 0.0002293627057 | I17: =_xlfn.GAMMA.DIST(G17,U_2_posterior,1/U_1_posterior,FALSE) -> 0.0002297270905
A18: lambda_prior_70 | B18: =U_2_prior/U_1_prior+0.3*SQRT(U_2_prior)/U_1_prior -> 534.3321958 | C18: =U_2_prior/U_1_prior+0.3*SQRT(U_2_prior)/U_1_prior | G18: =G17+lambda_high*0.07 -> 1050 | H18: =_xlfn.GAMMA.DIST(G18,U_2_prior,1/U_1_prior,FALSE) -> 0.0001730905242 | I18: =_xlfn.GAMMA.DIST(G18,U_2_posterior,1/U_1_posterior,FALSE) -> 0.0001432665615
A19: Data/vendor | G19: =G18+lambda_high*0.07 -> 1120 | H19: =_xlfn.GAMMA.DIST(G19,U_2_prior,1/U_1_prior,FALSE) -> 0.0001297906339 | I19: =_xlfn.GAMMA.DIST(G19,U_2_posterior,1/U_1_posterior,FALSE) -> 8.72085437e-05
A20: lambda_new | B20: 600 | C20: Failure rate estimate from data or vendor | G20: =G19+lambda_high*0.07 -> 1190 | H20: =_xlfn.GAMMA.DIST(G20,U_2_prior,1/U_1_prior,FALSE) -> 9.677659478e-05 | I20: =_xlfn.GAMMA.DIST(G20,U_2_posterior,1/U_1_posterior,FALSE) -> 5.1967403e-05
A21: n_proxy | B21: 4 | C21: Number of "failures" behind the estimate | G21: =G20+lambda_high*0.07 -> 1260 | H21: =_xlfn.GAMMA.DIST(G21,U_2_prior,1/U_1_prior,FALSE) -> 7.180152925e-05 | I21: =_xlfn.GAMMA.DIST(G21,U_2_posterior,1/U_1_posterior,FALSE) -> 3.038910768e-05
A22: Posterior
A23: U_1_posterior | B23: =U_1_prior+(n_proxy/lambda_new) -> 0.01210455806 | C23: =_xlfn.FORMULATEXT(B23) -> =U_1_prior+(n_proxy/lambda_new)
A24: U_2_posterior | B24: =U_2_prior+n_proxy -> 6.437286144 | C24: =U_2_prior+n_proxy
A25: posterior_mean | B25: =U_2_posterior/U_1_posterior -> 531.8067883 | C25: =U_2_posterior/U_1_posterior
A26: lambda_posterior_70 | B26: =U_2_posterior/U_1_posterior+0.3*SQRT(U_2_posterior)/U_1_posterior -> 594.6884087 | C26: =U_2_posterior/U_1_posterior+0.3*SQRT(U_2_posterior)/U_1_posterior
A27: Pr(lambda<lambda70) | B27: =_xlfn.GAMMA.DIST(lambda_70,U_2_posterior,1/U_1_posterior,TRUE) -> 0.6625877308 | C27: =GAMMA.DIST(lambda_70,U_2_posterior,1/U_1_posterior,TRUE)
